fUST/lending_fUST_20250630
["ID","MTS","AMOUNT","RATE_DAILY","PERIOD"]
[368633664,1751253496014,-151.0,0.00018398,2]
[368633665,1751253496035,-151.0,0.00018398,2]
[368633666,1751253496056,-182.048863,0.00018398,2]
[368633667,1751253496078,-182.048863,0.00018398,2]
[368633668,1751253496100,-151.0,0.00018503,2]
[368633669,1751253496123,-151.0,0.00018503,2]
[368633670,1751253496146,-182.048863,0.00018503,2]
[368633671,1751253496168,-182.048863,0.00018503,2]
[368633672,1751253496190,-162.11,0.00018511,2]
[368633673,1751253496212,-460.0,0.00018511,2]
[368633674,1751253496235,-351.46041493,0.00018511,2]
[368633675,1751253647338,2749.6863588,0.00017403,2]
[368633678,1751253836536,392.4682307,0.00017376,2]
[368633679,1751253838248,-188.78716171,0.00018138,2]
[368633680,1751253907600,187.82865487,0.00022998,30]
[368633781,1751254232694,-193.38486654,0.00018137,2]
[368633783,1751254232704,-207.4,0.00018227,2]
[368633785,1751254232714,-245.0,0.00018235,2]
[368633788,1751254232723,-136.99044411,0.00018235,2]
[368633790,1751254232735,-1063.00955589,0.00018235,2]
[368633791,1751254232744,-300.0,0.00018235,2]
[368633792,1751254232754,-160.0,0.00018236,2]
[368633794,1751254232765,-460.0,0.00018236,2]
[368633796,1751254232774,-460.0,0.00018236,2]
[368633797,1751254232784,-460.0,0.00018236,2]
[368633798,1751254232793,-833.48,0.00018236,2]
[368633800,1751254232803,-575.88,0.00018236,2]
[368633801,1751254232812,-460.0,0.00018236,2]
[368633802,1751254232821,-460.0,0.00018237,2]
[368633803,1751254232831,-204.84781325,0.00018237,2]
[368633804,1751254232852,-255.15218675,0.00018237,2]
[368633805,1751254232861,-460.0,0.00018237,2]
[368633806,1751254232871,-460.0,0.00018237,2]
[368633807,1751254232880,-507.99705393,0.00018237,2]
[368633808,1751254232889,-460.0,0.00018237,2]
[368633809,1751254232899,-460.0,0.00018237,2]
[368633810,1751254232908,-473.10634136,0.00018237,2]
[368633811,1751254232917,-460.0,0.00018237,2]
[368633812,1751254232927,-423.56624191,0.00018237,2]
[368633813,1751254232937,-460.0,0.00018237,2]
[368633814,1751254232946,-571.7957311,0.00018237,2]
[368633815,1751254232956,-460.0,0.00018237,2]
[368633816,1751254232965,-464.53684605,0.00018237,2]
[368633817,1751254232975,-197.01469031,0.00018237,2]
[368633818,1751254232983,-460.0,0.00018237,2]
[368633819,1751254232993,-486.30034482,0.00018237,2]
[368633820,1751254233002,-460.0,0.00018237,2]
[368633821,1751254233011,-460.0,0.00018237,2]
[368633822,1751254233020,-597.07531054,0.00018237,2]
[368633823,1751254233029,-460.0,0.00018237,2]
[368633824,1751254233038,-1260.58,0.00018237,2]
[368633825,1751254233048,-1746.41,0.00018237,2]
[368633826,1751254233057,-1131.52,0.00018237,2]
[368633827,1751254233067,-460.0,0.00018237,2]
[368633828,1751254233076,-460.0,0.00018237,2]
[368633829,1751254233085,-870.28,0.00018237,2]
[368633830,1751254233094,-460.0,0.00018237,2]
[368633831,1751254233103,-1110.83,0.00018237,2]
[368633832,1751254233111,-460.0,0.00018237,2]
[368633833,1751254233120,-460.0,0.00018237,2]
[368633834,1751254233130,-1741.06,0.00018237,2]
[368633835,1751254233139,-460.0,0.00018237,2]
[368633836,1751254233148,-1280.47,0.00018237,2]
[368633837,1751254233157,-460.0,0.00018237,2]
[368633838,1751254233166,-460.0,0.00018237,2]
[368633839,1751254233176,-782.07,0.00018237,2]
[368633840,1751254233189,-460.0,0.00018237,2]
[368633841,1751254233199,-460.0,0.00018237,2]
[368633842,1751254233208,-460.0,0.00018237,2]
[368633843,1751254233218,-511.15519582,0.00018238,2]
[368633844,1751254233228,-464.86902014,0.00018238,2]
[368633845,1751254233237,-429.71158997,0.00018238,2]
[368633846,1751254233247,-224.26251331,0.00018238,2]
[368633847,1751254233257,-464.94939749,0.00018238,2]
[368633848,1751254233267,-460.0,0.00018238,2]
[368633849,1751254233277,-469.63483697,0.00018238,2]
[368633850,1751254233287,-460.0,0.00018238,2]
[368633851,1751254233296,-460.0,0.00018238,2]
[368633852,1751254233305,-460.0,0.00018238,2]
[368633853,1751254233315,-2713.24,0.00018238,2]
[368633854,1751254233324,-460.0,0.00018238,2]
[368633855,1751254233333,-687.06,0.00018238,2]
[368633856,1751254233343,-780.26,0.00018238,2]
[368633857,1751254233352,-418.20237092,0.00018239,2]
[368633858,1751254233361,-460.0,0.00018239,2]
[368633859,1751254233373,-460.0,0.00018239,2]
[368633860,1751254233382,-460.0,0.00018239,2]
[368633861,1751254233392,-460.0,0.00018239,2]
[368633862,1751254233401,-460.0,0.00018239,2]
[368633863,1751254233411,-503.02772078,0.00018239,2]
[368633864,1751254233420,-460.0,0.00018239,2]
[368633865,1751254233430,-460.0,0.00018239,2]
[368633866,1751254233440,-460.0,0.00018239,2]
[368633867,1751254233449,-500.0,0.0001824,2]
[368633868,1751254233459,-411.94070221,0.0001824,2]
[368633869,1751254233468,-500.0,0.0001824,2]
[368633870,1751254233478,-500.0,0.0001824,2]
[368633871,1751254233488,-500.0,0.0001824,2]
[368633872,1751254233497,-500.0,0.0001824,2]
[368633873,1751254233508,-460.0,0.00018241,2]
[368633874,1751254233518,-180.56786878,0.00018401,2]
[368633875,1751254233669,-500.0,0.00018501,2]
[368633876,1751254233686,-500.0,0.00018501,2]
[368633877,1751254233696,-500.0,0.00018501,2]
[368633878,1751254233706,-500.0,0.00018501,2]
[368633879,1751254233715,-500.0,0.00018501,2]
[368633880,1751254233725,-500.0,0.00018501,2]
[368633881,1751254233734,-500.0,0.00018501,2]
[368633882,1751254233743,-500.0,0.00018501,2]
[368633883,1751254233753,-500.0,0.00018501,2]
[368633884,1751254233762,-500.0,0.00018501,2]
[368633885,1751254233771,-500.0,0.00018501,2]
[368633886,1751254233780,-500.0,0.00018501,2]
[368633887,1751254233790,-500.0,0.00018501,2]
[368633888,1751254233800,-500.0,0.00018501,2]
[368633889,1751254233809,-513.63175331,0.00018501,2]
[368633890,1751254233819,-470.10525248,0.00018501,2]
[368633891,1751254233829,-1004.239911,0.00018501,2]
[368633892,1751254233839,-460.0,0.00018501,2]
[368633893,1751254233848,-460.0,0.0001851,2]
[368633894,1751254233858,-460.0,0.0001851,2]
[368633895,1751254233867,-833.48,0.0001851,2]
[368633896,1751254233877,-575.88,0.0001851,2]
[368633897,1751254233887,-505.53283362,0.0001851,2]
[368633898,1751254233896,-460.0,0.00018511,2]
[368633899,1751254233906,-460.0,0.00018511,2]
[368633900,1751254233915,-460.0,0.00018511,2]
[368633901,1751254233925,-460.0,0.00018511,2]
[368633902,1751254233935,-460.0,0.00018511,2]
[368633903,1751254233945,-460.0,0.00018511,2]
[368633904,1751254233954,-299.65254408,0.00018511,2]
[368633905,1751254233964,-166.57209327,0.00018511,2]
[368633906,1751254233973,-460.0,0.00018511,2]
[368633907,1751254233983,-460.0,0.00018511,2]
[368633908,1751254233993,-1260.58,0.00018511,2]
[368633909,1751254234002,-1746.41,0.00018511,2]
[368633910,1751254234013,-1131.52,0.00018511,2]
[368633911,1751254234023,-460.0,0.00018511,2]
[368633912,1751254234032,-460.0,0.00018511,2]
[368633913,1751254234041,-870.28,0.00018511,2]
[368633914,1751254234051,-460.0,0.00018511,2]
[368633915,1751254234060,-1110.83,0.00018511,2]
[368633916,1751254234070,-460.0,0.00018511,2]
[368633917,1751254234079,-460.0,0.00018511,2]
[368633918,1751254234089,-1741.06,0.00018511,2]
[368633919,1751254234099,-1280.47,0.00018511,2]
[368633920,1751254234108,-460.0,0.00018511,2]
[368633921,1751254234117,-460.0,0.00018511,2]
[368633922,1751254234127,-782.07,0.00018511,2]
[368633923,1751254234137,-460.0,0.00018511,2]
[368633924,1751254234147,-460.0,0.00018511,2]
[368633925,1751254234157,-460.0,0.00018511,2]
[368633926,1751254234166,-474.4678957,0.00018512,2]
[368633927,1751254234175,-460.0,0.00018512,2]
[368633928,1751254234189,-844.52,0.00018512,2]
[368633929,1751254234199,-460.0,0.00018512,2]
[368633930,1751254234208,-460.0,0.00018512,2]
[368633931,1751254234217,-460.0,0.00018512,2]
[368633932,1751254234227,-460.0,0.00018512,2]
[368633933,1751254234237,-460.0,0.00018512,2]
[368633934,1751254234246,-460.0,0.00018512,2]
[368633935,1751254234255,-460.0,0.00018512,2]
[368633936,1751254234264,-460.0,0.00018512,2]
[368633937,1751254234274,-460.0,0.00018512,2]
[368633938,1751254234283,-19916.57,0.00018512,2]
[368633939,1751254234292,-464.79837109,0.00018512,2]
[368633940,1751254234301,-460.0,0.00018512,2]
[368633941,1751254234311,-460.0,0.00018512,2]
[368633942,1751254234321,-2713.24,0.00018512,2]
[368633943,1751254234330,-460.0,0.00018512,2]
[368633944,1751254234340,-681.89,0.00018512,2]
[368633945,1751254234350,-460.0,0.00018512,2]
[368633946,1751254234360,-687.06,0.00018512,2]
[368633947,1751254234370,-460.0,0.00018512,2]
[368633948,1751254234379,-460.0,0.00018512,2]
[368633949,1751254234389,-460.0,0.00018512,2]
[368633950,1751254234399,-780.26,0.00018512,2]
[368633951,1751254234408,-470.24402257,0.00018512,2]
[368633952,1751254234420,-460.0,0.00018512,2]
[368633953,1751254234430,-460.0,0.00018512,2]
[368633954,1751254234440,-460.0,0.00018512,2]
[368633955,1751254234450,-262.88028683,0.00018513,2]
[368633956,1751254234459,-460.0,0.00018513,2]
[368633957,1751254234469,-460.0,0.00018513,2]
[368633958,1751254234479,-460.0,0.00018513,2]
[368633959,1751254234490,-460.0,0.00018513,2]
[368633960,1751254234499,-460.0,0.00018513,2]
[368633961,1751254234510,-460.0,0.00018515,2]
[368633962,1751254234520,-460.0,0.00018525,2]
[368633963,1751254234530,-460.0,0.00018525,2]
[368633964,1751254234540,-460.0,0.00018525,2]
[368633965,1751254234550,-468.85549186,0.00018525,2]
[368633966,1751254234559,-460.0,0.00018525,2]
[368633967,1751254234569,-180.56786876,0.0001868,2]
[368633968,1751254234579,-460.0,0.00018775,2]
[368633969,1751254234588,-460.0,0.00018784,2]
[368633970,1751254234598,-460.0,0.00018784,2]
[368633971,1751254234608,-833.48,0.00018784,2]
[368633972,1751254234617,-575.88,0.00018784,2]
[368633973,1751254234627,-460.0,0.00018785,2]
[368633974,1751254234637,-540.0,0.00018785,2]
[368633975,1751254234647,-460.0,0.00018785,2]
[368633976,1751254234657,-460.0,0.00018785,2]
[368633977,1751254234667,-460.0,0.00018785,2]
[368633978,1751254234676,-460.0,0.00018785,2]
[368633979,1751254234686,-551.63096001,0.00018785,2]
[368633980,1751254234695,-460.0,0.00018785,2]
[368633981,1751254234706,-1260.58,0.00018785,2]
[368633982,1751254234715,-1746.41,0.00018785,2]
[368633983,1751254234725,-1131.52,0.00018785,2]
[368633984,1751254234735,-460.0,0.00018785,2]
[368633985,1751254234744,-460.0,0.00018785,2]
[368633986,1751254234754,-870.28,0.00018785,2]
[368633987,1751254234765,-460.0,0.00018785,2]
[368633988,1751254234775,-1110.83,0.00018785,2]
[368633989,1751254234785,-460.0,0.00018785,2]
[368633990,1751254234794,-1741.06,0.00018785,2]
[368633991,1751254234805,-1280.47,0.00018785,2]
[368633992,1751254234814,-460.0,0.00018785,2]
[368633993,1751254234824,-460.0,0.00018785,2]
[368633994,1751254234833,-782.07,0.00018785,2]
[368633995,1751254234843,-460.0,0.00018785,2]
[368633996,1751254234852,-460.0,0.00018785,2]
[368633997,1751254234861,-460.0,0.00018785,2]
[368633998,1751254234871,-844.52,0.00018786,2]
[368633999,1751254234880,-460.0,0.00018786,2]
[368634000,1751254234890,-460.0,0.00018786,2]
[368634001,1751254234901,-440.0,0.00018786,2]
[368634002,1751254234911,-460.0,0.00018786,2]
[368634003,1751254234920,-460.0,0.00018786,2]
[368634004,1751254234929,-460.0,0.00018786,2]
[368634005,1751254234939,-460.0,0.00018786,2]
[368634006,1751254234949,-460.0,0.00018786,2]
[368634007,1751254234958,-460.0,0.00018786,2]
[368634008,1751254234967,-4867.30988605,0.00018786,2]
[368634026,1751254238658,-460.0,0.00018237,2]
[368634027,1751254238668,-904.87301754,0.00018786,2]
[368634031,1751254238712,-14144.38709641,0.00018786,2]
[368634032,1751254238722,-460.0,0.00018786,2]
[368634034,1751254238731,-460.0,0.00018786,2]
[368634035,1751254238740,-2713.24,0.00018786,2]
[368634036,1751254238749,-460.0,0.00018786,2]
[368634037,1751254238758,-681.89,0.00018786,2]
[368634038,1751254238768,-460.0,0.00018786,2]
[368634039,1751254238778,-687.06,0.00018786,2]
[368634040,1751254238787,-460.0,0.00018786,2]
[368634041,1751254238797,-460.0,0.00018786,2]
[368634042,1751254238808,-780.26,0.00018786,2]
[368634043,1751254238826,-460.0,0.00018786,2]
[368634044,1751254238838,-460.0,0.00018786,2]
[368634045,1751254238848,-460.0,0.00018787,2]
[368634046,1751254238858,-460.0,0.00018787,2]
[368634047,1751254238868,-460.0,0.00018787,2]
[368634048,1751254238878,-460.0,0.00018787,2]
[368634049,1751254238888,-460.0,0.00018787,2]
[368634050,1751254238898,-469.2586194,0.00018789,2]
[368634051,1751254238907,-193.38486649,0.00018789,2]
[368634052,1751254238918,-460.0,0.00018799,2]
[368634053,1751254238927,-460.0,0.00018799,2]
[368634054,1751254238937,-457.35693487,0.00018799,2]
[368634055,1751254238946,-1439.6311536,0.000189,2]
[368634056,1751254238956,-168.0,0.0001892,2]
[368634057,1751254238966,-180.56786876,0.00018959,2]
[368634058,1751254238976,-160.0,0.00019028,2]
[368634059,1751254238985,-230.31346914,0.00019028,2]
[368634060,1751254238995,-12569.13231816,0.00019028,2]
[368634061,1751254239004,-160.0,0.00019028,2]
[368634062,1751254239013,-214.99848635,0.00019028,2]
[368634063,1751254239023,-160.0,0.00019028,2]
[368634064,1751254239034,-837.16779106,0.00019028,2]
[368634065,1751254239043,-160.0,0.00019028,2]
[368634066,1751254239054,-847.41730813,0.00019028,2]
[368634067,1751254239063,-160.0,0.00019028,2]
[368634068,1751254239073,-160.0,0.00019028,2]
[368634069,1751254239082,-213.84631524,0.00019028,2]
[368634070,1751254239091,-460.0,0.00019049,2]
[368634071,1751254239101,-571.52,0.00019049,3]
[368634072,1751254239110,-285.76,0.00019049,3]
[368634073,1751254239120,-857.3,0.00019049,3]
[368634074,1751254239130,-160.0,0.00019053,2]
[368634075,1751254239139,-460.0,0.00019058,2]
[368634076,1751254239148,-184.95909533,0.00019058,2]
[368634077,1751254239158,-833.48,0.00019058,2]
[368634078,1751254239168,-575.88,0.00019058,2]
[368634079,1751254239177,-460.0,0.00019059,2]
[368634080,1751254239188,-460.0,0.00019059,2]
[368634081,1751254239198,-460.0,0.00019059,2]
[368634082,1751254239208,-460.0,0.00019059,2]
[368634083,1751254239217,-460.0,0.00019059,2]
[368634084,1751254239227,-460.0,0.00019059,2]
[368634085,1751254239237,-1260.58,0.00019059,2]
[368634086,1751254239246,-1746.41,0.00019059,2]
[368634087,1751254239256,-1131.52,0.00019059,2]
[368634088,1751254239266,-460.0,0.00019059,2]
[368634089,1751254239276,-460.0,0.00019059,2]
[368634090,1751254239285,-870.28,0.00019059,2]
[368634091,1751254239295,-460.0,0.00019059,2]
[368634092,1751254239304,-1110.83,0.00019059,2]
[368634093,1751254239313,-460.0,0.00019059,2]
[368634094,1751254239323,-1741.06,0.00019059,2]
[368634095,1751254239333,-1280.47,0.00019059,2]
[368634096,1751254239343,-460.0,0.00019059,2]
[368634097,1751254239352,-460.0,0.00019059,2]
[368634098,1751254239362,-782.07,0.00019059,2]
[368634099,1751254239371,-460.0,0.00019059,2]
[368634100,1751254239381,-460.0,0.00019059,2]
[368634101,1751254239391,-327.1356276,0.00019059,2]
[368634102,1751254239401,-844.52,0.0001906,2]
[368634103,1751254239410,-460.0,0.0001906,2]
[368634104,1751254239420,-460.0,0.0001906,2]
[368634105,1751254239430,-460.0,0.0001906,2]
[368634106,1751254239443,-460.0,0.0001906,2]
[368634107,1751254239454,-460.0,0.0001906,2]
[368634108,1751254239463,-460.0,0.0001906,2]
[368634109,1751254239473,-460.0,0.0001906,2]
[368634110,1751254239483,-19916.57,0.0001906,2]
[368634111,1751254239493,-460.0,0.0001906,2]
[368634112,1751254239502,-460.0,0.0001906,2]
[368634113,1751254239513,-2713.24,0.0001906,2]
[368634114,1751254239523,-460.0,0.0001906,2]
[368634115,1751254239532,-681.89,0.0001906,2]
[368634116,1751254239542,-460.0,0.0001906,2]
[368634117,1751254239551,-687.06,0.0001906,2]
[368634118,1751254239561,-454.68,0.0001906,2]
[368634119,1751254239571,-460.0,0.0001906,2]
[368634120,1751254239580,-780.26,0.0001906,2]
[368634121,1751254239590,-460.0,0.0001906,2]
[368634122,1751254239600,-460.0,0.0001906,2]
[368634123,1751254239610,-460.0,0.00019061,2]
[368634124,1751254239620,-460.0,0.00019061,2]
[368634125,1751254239631,-460.0,0.00019061,2]
[368634126,1751254239641,-460.0,0.00019061,2]
[368634127,1751254239651,-466.20191425,0.00019063,2]
[368634128,1751254239660,-460.0,0.00019063,2]
[368634129,1751254239670,-382.23150915,0.00019063,2]
[368634130,1751254239680,-448.59815727,0.00019063,2]
[368634131,1751254239689,-447.04088469,0.00019063,2]
[368634132,1751254239699,-460.0,0.00019073,2]
[368634133,1751254239709,-460.0,0.00019073,2]
[368634134,1751254239718,-500.0,0.00019148,2]
[368634135,1751254239727,-373.45339373,0.00019164,2]
[368634136,1751254239737,-500.0,0.00019178,2]
[368634137,1751254239747,-151.0,0.00019178,2]
[368634138,1751254239757,-151.0,0.00019178,2]
[368634139,1751254239767,-500.0,0.00019178,2]
[368634140,1751254239776,-500.0,0.00019178,2]
[368634141,1751254239785,-500.0,0.00019178,2]
[368634142,1751254239795,-151.0,0.00019178,2]
[368634143,1751254239804,-151.0,0.00019178,2]
[368634144,1751254239814,-151.0,0.00019178,2]
[368634145,1751254239824,-151.0,0.00019178,2]
[368634146,1751254239833,-151.0,0.00019178,2]
[368634147,1751254239843,-505.465796,0.00019178,2]
[368634148,1751254239852,-501.02964082,0.00019205,2]
[368634149,1751254239861,-151.0,0.00019205,2]
[368634150,1751254239872,-151.0,0.00019205,2]
[368634151,1751254239880,-500.0,0.00019205,2]
[368634152,1751254239890,-500.0,0.00019205,2]
[368634153,1751254239901,-500.0,0.00019205,2]
[368634154,1751254239910,-151.0,0.00019205,2]
[368634155,1751254239919,-151.25535634,0.00019205,2]
[368634156,1751254239929,-151.0,0.00019205,2]
[368634157,1751254239937,-151.0,0.00019205,2]
[368634158,1751254239947,-151.0,0.00019233,2]
[368634159,1751254239957,-151.0,0.00019233,2]
[368634160,1751254239967,-500.0,0.00019233,2]
[368634161,1751254239976,-500.0,0.00019233,2]
[368634162,1751254239987,-501.40025612,0.00019233,2]
[368634163,1751254239996,-199.24330367,0.00019233,2]
[368634164,1751254240005,-165.18911145,0.00019233,2]
[368634165,1751254240015,-151.0,0.00019233,2]
[368634166,1751254240025,-34289.91336787,0.00019233,2]
[368634167,1751254240035,-246.57214437,0.0001926,2]
[368634168,1751254240044,-151.0,0.0001926,2]
[368634169,1751254240053,-500.0,0.0001926,2]
[368634170,1751254240062,-500.0,0.0001926,2]
[368634171,1751254240074,-158.88238876,0.0001926,2]
[368634172,1751254240083,-168.0,0.00019269,2]
[368634173,1751254240093,-500.0,0.00019277,2]
[368634175,1751254240102,-247.28135288,0.00019288,2]
[368634176,1751254240111,-254.19260239,0.00019288,2]
[368634177,1751254240121,-333.78386054,0.00019288,2]
[368634178,1751254240130,-389.17191419,0.00019323,2]
[368634179,1751254240139,-100000.0,0.00019329,2]
[368634180,1751254240148,-460.0,0.00019332,2]
[368634181,1751254240158,-833.48,0.00019332,2]
[368634182,1751254240167,-575.88,0.00019332,2]
[368634183,1751254240177,-460.0,0.00019333,2]
[368634184,1751254240190,-460.0,0.00019333,2]
[368634185,1751254240201,-460.0,0.00019333,2]
[368634186,1751254240210,-460.0,0.00019333,2]
[368634187,1751254240219,-460.0,0.00019333,2]
[368634188,1751254240230,-1260.58,0.00019333,2]
[368634189,1751254240240,-460.0,0.00019333,2]
[368634190,1751254240250,-1746.41,0.00019333,2]
[368634191,1751254240259,-1131.52,0.00019333,2]
[368634192,1751254240270,-460.0,0.00019333,2]
[368634193,1751254240280,-331.64653123,0.00019333,2]
[368634194,1751254240290,-870.28,0.00019333,2]
[368634195,1751254240299,-460.0,0.00019333,2]
[368634196,1751254240309,-1110.83,0.00019333,2]
[368634197,1751254240319,-460.0,0.00019333,2]
[368634198,1751254240329,-1741.06,0.00019333,2]
[368634199,1751254240339,-1280.47,0.00019333,2]
[368634200,1751254240349,-460.0,0.00019333,2]
[368634201,1751254240359,-460.0,0.00019333,2]
[368634202,1751254240368,-782.07,0.00019333,2]
[368634203,1751254240378,-460.0,0.00019333,2]
[368634204,1751254240388,-460.0,0.00019333,2]
[368634205,1751254240398,-844.52,0.00019334,2]
[368634206,1751254240408,-460.0,0.00019334,2]
[368634207,1751254240418,-460.0,0.00019334,2]
[368634208,1751254240429,-460.0,0.00019334,2]
[368634209,1751254240439,-460.0,0.00019334,2]
[368634210,1751254240449,-460.0,0.00019334,2]
[368634211,1751254240459,-460.0,0.00019334,2]
[368634213,1751254240469,-460.0,0.00019334,2]
[368634214,1751254240479,-19916.57,0.00019334,2]
[368634215,1751254240489,-460.0,0.00019334,2]
[368634216,1751254240500,-460.0,0.00019334,2]
[368634217,1751254240511,-2713.24,0.00019334,2]
[368634218,1751254240521,-460.0,0.00019334,2]
[368634219,1751254240532,-681.89,0.00019334,2]
[368634220,1751254240542,-460.0,0.00019334,2]
[368634221,1751254240552,-687.06,0.00019334,2]
[368634222,1751254240561,-460.0,0.00019334,2]
[368634223,1751254240572,-780.26,0.00019334,2]
[368634224,1751254240582,-460.0,0.00019334,2]
[368634225,1751254240591,-460.0,0.00019335,2]
[368634226,1751254240601,-460.0,0.00019335,2]
[368634227,1751254240611,-460.0,0.00019335,2]
[368634228,1751254240828,-460.0,0.00019337,2]
[368634230,1751254240839,-460.0,0.00019347,2]
[368634231,1751254240849,-460.0,0.00019347,2]
[368634232,1751254240859,-168.0,0.00019411,2]
[368634233,1751254240869,-490.71279274,0.00019417,2]
[368634234,1751254240879,-512.94081828,0.00019427,2]
[368634235,1751254240890,-501.0369887,0.00019427,2]
[368634236,1751254240901,-500.0,0.00019427,2]
[368634237,1751254240911,-500.0,0.00019427,2]
[368634238,1751254240922,-500.0,0.00019427,2]
[368634239,1751254240931,-500.1469035,0.00019427,2]
[368634240,1751254240941,-500.84220279,0.00019427,2]
[368634241,1751254240951,-193.38486649,0.00019442,2]
[368634242,1751254240961,-500.0,0.0001947,2]
[368634243,1751254240971,-500.90077759,0.0001947,2]
[368634244,1751254240981,-570.9676424,0.0001947,2]
[368634245,1751254240990,-500.0,0.0001947,2]
[368634246,1751254241000,-501.22139317,0.0001947,2]
[368634247,1751254241017,-501.08720691,0.0001947,2]
[368634248,1751254241029,-501.12856268,0.0001947,2]
[368634249,1751254241039,-500.0,0.0001947,2]
[368634250,1751254241049,-500.0,0.00019475,2]
[368634251,1751254241060,-17225.12927895,0.00019507,2]
[368634252,1751254241070,-215.0738,0.00019596,2]
[368634253,1751254241080,-567.80549349,0.00019606,2]
[368634254,1751254241091,-833.48,0.00019606,2]
[368634255,1751254241100,-575.88,0.00019606,2]
[368634256,1751254241110,-240.02230038,0.00019607,2]
[368634257,1751254241120,-460.0,0.00019607,2]
[368634258,1751254241130,-460.0,0.00019607,2]
[368634259,1751254241140,-460.0,0.00019607,2]
[368634260,1751254241151,-460.0,0.00019607,2]
[368634261,1751254241161,-1260.58,0.00019607,2]
[368634262,1751254241171,-460.0,0.00019607,2]
[368634263,1751254241181,-1746.41,0.00019607,2]
[368634264,1751254241195,-1131.52,0.00019607,2]
[368634265,1751254241206,-460.0,0.00019607,2]
[368634266,1751254241216,-870.28,0.00019607,2]
[368634267,1751254241229,-460.0,0.00019607,2]
[368634268,1751254241240,-1110.83,0.00019607,2]
[368634269,1751254241252,-460.0,0.00019607,2]
[368634270,1751254241264,-1741.06,0.00019607,2]
[368634271,1751254241275,-1280.47,0.00019607,2]
[368634272,1751254241285,-460.0,0.00019607,2]
[368634273,1751254241296,-460.0,0.00019607,2]
[368634274,1751254241306,-782.07,0.00019607,2]
[368634275,1751254241316,-460.0,0.00019607,2]
[368634276,1751254241326,-460.0,0.00019607,2]
[368634277,1751254241336,-844.52,0.00019608,2]
[368634278,1751254241346,-460.0,0.00019608,2]
[368634279,1751254241356,-460.0,0.00019608,2]
[368634280,1751254241366,-460.0,0.00019608,2]
[368634281,1751254241375,-460.0,0.00019608,2]
[368634282,1751254241385,-460.0,0.00019608,2]
[368634283,1751254241396,-460.0,0.00019608,2]
[368634284,1751254241406,-460.0,0.00019608,2]
[368634285,1751254241415,-19916.57,0.00019608,2]
[368634286,1751254241425,-460.0,0.00019608,2]
[368634287,1751254241435,-460.0,0.00019608,2]
[368634288,1751254241445,-2713.24,0.00019608,2]
[368634289,1751254241456,-460.0,0.00019608,2]
[368634290,1751254241466,-681.89,0.00019608,2]
[368634291,1751254241476,-460.0,0.00019608,2]
[368634292,1751254241486,-687.06,0.00019608,2]
[368634293,1751254241496,-780.26,0.00019608,2]
[368634294,1751254241506,-460.0,0.00019608,2]
[368634295,1751254241517,-460.0,0.00019609,2]
[368634296,1751254241527,-460.0,0.00019609,2]
[368634297,1751254241536,-460.0,0.00019609,2]